Cogmind - Beta 10 @@@ ROGUE MODE // 2020.09.16 @ 06:20:42 Player: IAMCRAIG Result: Destroyed by as-98413 with Assembled Heavy Rifle Performance ------------- Evolutions (0) 0 Regions Visited (4) 800 Robots Destroyed (41) 205 Value Destroyed (740) 740 Prototype IDs (23) 460 Alien Tech Used (0) 0 Bonus (300) 300 TOTAL SCORE: 2505 Bonus ------- Aligned with FarCom 300 Cogmind --------- Core Integrity 0/250 Matter 286/300 Energy 86/100 System Corruption 0% Temperature Cool (0) Movement Treading (200) Ox2 Location -9/Mines Parts ------- > --- POWER (1) -------- (None) > --- PROPULSION (2) --- Light Treads Wheel > --- UTILITY (2) ------ High-capacity Storage Unit Hardened Light Armor Plating > --- WEAPON (2) ------- Gauss Rifle Longsword +1 > --- INVENTORY (12) --- Compact Wheel Improved Heat Sink High-capacity Storage Unit High-capacity Battery (400) Large Matter Pod (150) Experimental Sensor Array Weapon Shielding Improved Shield Generator EM Shotgun Autogun Heavy Missile Launcher Enhanced Flamer Peak State ------------ > --- POWER ------------ Light Nuclear Core > --- PROPULSION ------- Light Treads Wheel > --- UTILITY ---------- High-capacity Storage Unit High-capacity Storage Unit > --- WEAPON ----------- Particle Gun Longsword +1 > --- INVENTORY -------- Light Treads Compact Wheel Improved Heat Sink Large Storage Unit Large Storage Unit High-capacity Storage Unit High-capacity Battery Large Matter Pod Experimental Sensor Array Weapon Shielding Weapon Shielding Light Assault Rifle Light Cannon Rocket Launcher Enhanced Flamer Mining Claw [Rating: 19] Favorites ----------- Power Light Nuclear Core Engine Light Ion Engine Power Core Light Nuclear Core Propulsion Light Treads Treads Light Treads Wheel Wheel Utility High-capacity Storage Unit Storage High-capacity Storage Unit Protection Hardened Light Armor Plating Weapon Small Laser Energy Gun Small Laser Ballistic Gun Light Assault Rifle Launcher Grenade Launcher Special Weapon Enhanced Flamer Slashing Weapon Mining Claw Build | -11 -10 -10 -10 -9 ------- Run | Scr Mat Min Exi Min Slots Evolved . | . . . . . Power . | . . . . . Propulsion . | . . . . . Utility . | . . . . . Weapon . | . . . . . Parts Attached 46 | 8 12 6 13 7 Power 2 | 1 1 . . . Engine 1 | 1 . . . . Core 1 | . 1 . . . Reactor . | . . . . . Propulsion 12 | 2 2 1 4 3 Treads 6 | 1 1 . 1 3 Leg . | . . . . . Wheel 6 | 1 1 1 3 . Hover . | . . . . . Flight . | . . . . . Utility 14 | 2 3 . 7 2 Device . | . . . . . Storage 13 | 2 3 . 7 1 Processor . | . . . . . Hackware . | . . . . . Protection 1 | . . . . 1 Artifact . | . . . . . Weapon 18 | 3 6 5 2 2 Energy Gun 7 | 2 2 1 1 1 Energy Cannon . | . . . . . Ballistic Gun 5 | 1 2 1 . 1 Ballistic Cannon . | . . . . . Launcher 3 | . 2 1 . . Special Weapon 1 | . . 1 . . Impact Weapon . | . . . . . Slashing Weapon 2 | . . 1 1 . Piercing Weapon . | . . . . . Special Melee Weapon . | . . . . . Unidentified Prototypes . | . . . . . Parts Lost 4 | . 1 2 . 1 Power 1 | . . . . 1 Propulsion . | . . . . . Utility . | . . . . . Weapon 3 | . 1 2 . . Highest Loss Streak 2 | . 1 2 . 1 Average Slot Usage (%) 98 | . 100 99 100 92 Engine 2 | . 10 . . . Core 9 | . 3 14 14 7 Treads 14 | . 14 14 14 14 Wheel 14 | . 14 14 14 14 Storage 26 | . 28 28 28 21 Protection 1 | . . . . 6 Energy Gun 14 | . 17 13 14 13 Ballistic Gun 2 | . 3 6 . . Launcher 1 | . 6 . . . Slashing Weapon 8 | . . 7 14 14 Naked Turns . | . . . . . Heaviest Build 75 | 14 56 48 75 44 Greatest Support 20 | 20 20 10 16 20 Greatest Overweight (x) 7 | 1 5 4 7 4 Average Overweight (x) 3 | . 3 4 3 3 Largest Inventory Capacity 20 | 8 18 16 20 14 Average Capacity 15 | 6 15 16 15 13 Most Carried 18 | 4 16 16 18 14 Average Carried 14 | 2 13 15 15 12 Final Capacity 16 | 8 16 16 14 12 Final Carried 16 | 4 16 16 12 12 Class Distribution -------------------- 82% | Mutant 17% | Scavenger-Mutant Dominant Class ---------------- Mutant | -10/Materials Mutant | -10/Mines Mutant | -10/Exiles Mutant | -9/Mines Resources | -11 -10 -10 -10 -9 ----------- Run | Scr Mat Min Exi Min Matter Collected 816 | 283 248 75 40 170 Remotely . | . . . . . Salvage Created 995 | 74 575 201 . 145 Parts 69 | 3 44 15 . 7 Haulers Intercepted 2 | . 2 . . . Recyclers Shooed 1 | . 1 . . . Parts Field Recycled . | . . . . . Retrieved Matter . | . . . . . Parts Self-Destructed . | . . . . . Prevented . | . . . . . Kills | -11 -10 -10 -10 -9 ------- Run | Scr Mat Min Exi Min Combat Hostiles Destroyed 28 | . 17 6 . 5 Melee 5 | . . . . 5 Guns 10 | . 7 3 . . AOE 13 | . 10 3 . . Classes Destroyed 10 | 1 6 1 . 2 Worker 4 | . 3 1 . . Builder 1 | . 1 . . . Hauler 2 | . 2 . . . Recycler 2 | 1 1 . . . Mechanic 1 | . . 1 . . Watcher 3 | . 3 . . . Swarmer 11 | . 8 3 . . Grunt 12 | . 9 3 . . Sentry 2 | . . . . 2 Assembled 3 | . . . . 3 Best Kill Streak 8 | 1 8 4 . 2 Combat Bots Only 6 | . 6 3 . 2 Max Kills in Single Turn 4 | 1 2 4 . 1 Gunslinging . | . . . . . Exploded 3 | . 2 3 . . Melee 1 | . . . . 1 Uniques/NPCs Destroyed . | . . . . . Combat | -11 -10 -10 -10 -9 -------- Run | Scr Mat Min Exi Min Damage Taken 1007 | . 349 421 . 237 Core 264 | . 62 87 . 115 Absorbed by Shields . | . . . . . Core Remaining (%) 100 | 100 . . . . Volleys Fired 74 | 3 56 12 . 3 Largest 2 | 2 2 2 . 1 Hottest 90 | 60 90 80 . 45 Shots Fired 100 | 6 74 17 . 3 Gun 83 | 6 60 14 . 3 Cannon . | . . . . . Launcher 15 | . 14 1 . . Special 2 | . . 2 . . Kinetic 9 | 3 . 5 . 1 Thermal 74 | 3 60 11 . . Explosive 15 | . 14 1 . . Electromagnetic 2 | . . . . 2 Robot Hit Streak 15 | 2 15 4 . 2 Robot Miss Streak 3 | 1 3 2 . 3 Penetration Max . | . . . . . Secondary Targets 2 | . 1 1 . . Max Gunslinging Chain 1 | . 1 1 . . Shots Hit Robots 78 | 4 49 14 . 11 Core Hits 56 | 2 42 8 . 4 Critical Hits . | . . . . . Critical Kills . | . . . . . Critical Parts Destroyed . | . . . . . Melee Attacks 23 | . . 9 . 14 Impact . | . . . . . Slashing 23 | . . 9 . 14 Piercing . | . . . . . Sneak Attacks 3 | . . 2 . 1 Combat Hostiles . | . . . . . Follow-up Attacks . | . . . . . Damage Inflicted 2669 | 31 1612 452 . 574 Guns 640 | 31 508 85 . 16 Cannons . | . . . . . Explosions 1293 | . 1104 189 . . Melee 725 | . . 167 . 558 Ramming . | . . . . . Kinetic 32 | 10 . 22 . . Thermal 603 | 21 508 74 . . Explosive 1293 | . 1104 189 . . Electromagnetic 16 | . . . . 16 Impact . | . . . . . Slashing 725 | . . 167 . 558 Piercing . | . . . . . Highest Corruption . | . . . . . Average Corruption . | . . . . . Corruption Purged . | . . . . . Overload Shots . | . . . . . Overflow Damage 143 | . 36 37 . 70 Projectiles . | . . . . . Explosions 36 | . 36 . . . Melee 107 | . . 37 . 70 Knockbacks . | . . . . . Impact . | . . . . . Kinetic . | . . . . . Secondary . | . . . . . Self-Inflicted Damage 30 | . . 30 . . Shots 1 | . . 1 . . Rammed . | . . . . . Targets Rammed . | . . . . . Kicked . | . . . . . Crushed . | . . . . . Highest Temperature 180 | 20 180 130 . 28 Average Temperature 45 | 13 44 61 . 6 Received Heat Transfer 446 | . 120 159 . 167 Siege Activations . | . . . . . Robots Corrupted . | . . . . . Combat Hostiles . | . . . . . Parts Fried . | . . . . . Impact Corruptions . | . . . . . Robots Melted . | . . . . . Combat Hostiles . | . . . . . Parts Melted 2 | . 1 1 . . Heat Transferred 1702 | 50 1422 230 . . Parts Sabotaged . | . . . . . Parts Stolen . | . . . . . Parts Stripped . | . . . . . Power Chain Reactions . | . . . . . Missiles Intercepted . | . . . . . Alert | -11 -10 -10 -10 -9 ------- Run | Scr Mat Min Exi Min Peak Influence 361 | 5 361 163 . 40 Initial 78 | . 3 78 . . Average 121 | 1 204 99 . 24 Maximum Alert Level 1 | . 1 . . . Low Security (%) 73 | 100 33 100 . 100 Level 1 26 | . 66 . . . Level 2 . | . . . . . Level 3 . | . . . . . Level 4 . | . . . . . Level 5 . | . . . . . High Security . | . . . . . Max Security . | . . . . . Squads Dispatched 5 | . 3 1 . 1 Investigation 2 | . 1 . . 1 Extermination . | . . . . . Reinforcement 2 | . 2 . . . Assault 1 | . . 1 . . Garrison . | . . . . . Intercept . | . . . . . Construction Impeded . | . . . . . Haulers Reinforced . | . . . . . Stealth | -11 -10 -10 -10 -9 --------- Run | Scr Mat Min Exi Min Distress Signals . | . . . . . Communications Jammed . | . . . . . Distress Signals . | . . . . . Times Spotted 62 | . 35 8 . 19 Peak Tracking Total 8 | . 5 4 . 8 Tactical Retreats 11 | . 6 1 . 4 Traps | -11 -10 -10 -10 -9 ------- Run | Scr Mat Min Exi Min Traps Triggered 1 | . 1 . . . Indirectly . | . . . . . Trap Hack Attempts . | . . . . . Triggered . | . . . . . Disarmed . | . . . . . Reprogrammed . | . . . . . Reused . | . . . . . Traps Extracted . | . . . . . Installed . | . . . . . Triggered . | . . . . . Machines | -11 -10 -10 -10 -9 ---------- Run | Scr Mat Min Exi Min Machines Disabled 2 | . 2 . . . Max in Single Turn 1 | . 1 . . . Machines Sabotaged . | . . . . . Garrisons Compromised . | . . . . . Overloaded Fab Kills . | . . . . . Fab Network Shutdowns . | . . . . . Hacking | -11 -10 -10 -10 -9 --------- Run | Scr Mat Min Exi Min Machines Accessed 8 | . 4 . 3 1 Terminals 1 | . 1 . . . Fabricators . | . . . . . Repair Stations 1 | . 1 . . . Recycling Units 2 | . 2 . . . Scanalyzers . | . . . . . Garrison Access . | . . . . . Total Hacks 20 | . 14 . 5 1 Successful 15 | . 9 . 5 1 Failed 5 | . 5 . . . Catastrophic . | . . . . . Database Lockouts . | . . . . . Manual 8 | . 7 . 1 . Terminals 3 | . 3 . . . Fabricators . | . . . . . Repair Stations 3 | . 3 . . . Recycling Units 8 | . 8 . . . Scanalyzers . | . . . . . Garrison Access . | . . . . . Terminal Hacks 6 | . . . 5 1 Record 4 | . . . 4 . Open Door 1 | . . . . 1 EX-Prototype ID Bank 1 | . . . 1 . Fabricator Hacks . | . . . . . Repair Station Hacks 2 | . 2 . . . Scan Component 1 | . 1 . . . Repair 1 | . 1 . . . Recycling Unit Hacks 4 | . 4 . . . Report Inventory 2 | . 2 . . . Retrieve Components 2 | . 2 . . . Scanalyzer . | . . . . . Garrison Access Hacks . | . . . . . Unauthorized Hacks 3 | . 3 . . . Terminals . | . . . . . Fabricators . | . . . . . Repair Stations . | . . . . . Recycling Units 3 | . 3 . . . Reject 2 | . 2 . . . Recyclers 1 | . 1 . . . Scanalyzers . | . . . . . Garrison Access . | . . . . . Data Cores Recovered . | . . . . . Used . | . . . . . Hacking Detections 2 | . 2 . . . Full Trace Events . | . . . . . Feedback Events . | . . . . . Feedback Blocked . | . . . . . Robot Schematics Acquired . | . . . . . Robots Built . | . . . . . Matter . | . . . . . Time . | . . . . . Total Robot Build Rating . | . . . . . Part Schematics Acquired . | . . . . . Parts Built . | . . . . . Matter . | . . . . . Time . | . . . . . Total Part Build Rating . | . . . . . Parts Repaired 1 | . 1 . . . Time 32 | . 32 . . . Parts Recycled . | . . . . . Recycled Matter . | . . . . . Retrieved Matter . | . . . . . Retrieved Components 13 | . 13 . . . Parts Scanalyzed . | . . . . . Part Schematics Acquired . | . . . . . Parts Damaged . | . . . . . Bothacking | -11 -10 -10 -10 -9 ------------ Run | Scr Mat Min Exi Min Used RIF Installer . | . . . . . Robots Hacked . | . . . . . Non-combat . | . . . . . Combat . | . . . . . Robot Hacks Applied . | . . . . . Relay Couplers Released . | . . . . . Robots Rewired . | . . . . . Allies Hacked . | . . . . . Hacks Repelled . | . . . . . Allies | -11 -10 -10 -10 -9 -------- Run | Scr Mat Min Exi Min Total Allies 1 | . . 1 . . Largest Group 1 | . . 1 . . Highest-Rated Group 31 | . . 31 . . Highest-Rated Ally 31 | . . 31 . . Total Orders . | . . . . . Ally Attacks 3 | . . 3 . . Total Damage 61 | . . 61 . . Kills . | . . . . . Allies Corrupted . | . . . . . Allies Melted . | . . . . . Intel | -11 -10 -10 -10 -9 ------- Run | Scr Mat Min Exi Min Robot Analysis Total . | . . . . . Derelict Logs Recovered 2 | . . 2 . . Drone Launches . | . . . . . Drone Recoveries . | . . . . . Exploration | -11 -10 -10 -10 -9 ------------- Run | Scr Mat Min Exi Min Turns Passed 3618 | 79 993 842 1141 563 Spaces Moved 2540 | 66 581 643 927 323 Core 5 | 5 . . . . Treads 101 | 1 96 . . 4 Legs . | . . . . . Wheels 2434 | 60 485 643 927 319 Hover . | . . . . . Flight . | . . . . . Fastest Speed 50 | 50 90 120 110 100 Average Speed 121 | 82 131 120 120 114 Slowest Speed 200 | 160 200 120 150 200 Overloaded Moves . | . . . . . Propulsion Burnouts . | . . . . . Robots Hopped . | . . . . . Cave-ins Triggered . | . . . . . Exploration Rate (%) 63 | 4 92 93 92 34 Regions Visited 4 Branch Regions 3 Pre-discovered Areas 1 | . . 1 . . Known Exits Taken . | . . . . . Unknown Exits Taken 4 | 1 1 1 1 . Scrap Searched 3 | . . 3 . . Spaces Dug 3 | . . . . 3 Terrain Destroyed 135 | . 117 13 . 5 Melee 3 | . . . . 3 Projectile 2 | . . . . 2 AOE 130 | . 117 13 . . Terrain Rammed . | . . . . . Walls Destroyed . | . . . . . Machines Disabled . | . . . . . Actions | -11 -10 -10 -10 -9 --------- Run | Scr Mat Min Exi Min Total 2964 | 81 743 679 957 504 Wait 208 | . 70 2 . 136 Move 2536 | 65 580 642 926 323 Hop . | . . . . . Pick Up 37 | 4 14 3 5 11 Fast Attach 14 | 7 5 1 . 1 Attach 8 | 1 2 1 3 1 Detach 5 | 1 2 . 2 . Swap 24 | . 5 4 10 5 Drop 35 | . 9 5 11 10 Fire 74 | 3 56 12 . 3 Melee 23 | . . 9 . 14 Ram . | . . . . . Kick . | . . . . . Crush . | . . . . . Escape Stasis . | . . . . . Rewire . | . . . . . Trap . | . . . . . Miscellaneous . | . . . . . Route ------- -11/Scrapyard -10/Materials (discovered 4 exits: [*Mat x3] / [*Min]) -10/Mines (discovered 2 exits: [*Mat] / *Exi) -10/Exiles (discovered 2 exits: *Min x2) -9/Mines (discovered 1 exit: [*Mat]) History --------- Turn | Location | Event 20 | -11/Scrapyard | Discovered new exit (range 15) 80 | -11/Scrapyard | Entered Materials 315 | -10/Materials | Build established: Mutant 400 | -10/Materials | Discovered new exit (range 15) 637 | -10/Materials | Repaired Rocket Launcher 697 | -10/Materials | Discovered new exit (range 8) 874 | -10/Materials | Discovered new exit (range 12) 1040 | -10/Materials | Discovered new exit (range 7) 1073 | -10/Materials | Entered Mines 1133 | -10/Mines | Found a damaged Exp. Sensor Array with a note attached 1136 | -10/Mines | Found Prototype Device 1330 | -10/Mines | A weapon hastily lodged in a ceiling crevice suddenly fell to the ground 1350 | -10/Mines | Deemed a non-threat by the Exiles lab entrance 1351 | -10/Mines | Discovered new exit (range 5) 1429 | -10/Mines | Met a Derelict testing a Signal Generator 1476 | -10/Mines | Core integrity fell below 50% 1543 | -10/Mines | Discovered new exit (range 3) 1770 | -10/Mines | Learned location of 1 exit from Materials 1815 | -10/Mines | Build established: Scavenger-Mutant 1915 | -10/Mines | Entered Exiles 1943 | -10/Exiles | Met 8R-AWN 1963 | -10/Exiles | Met EX-HEX 2069 | -10/Exiles | Met EX-DEC 2102 | -10/Exiles | Visited The Gauntlet 2251 | -10/Exiles | Met EX-BIN 2325 | -10/Exiles | Build established: Mutant 2411 | -10/Exiles | Aligned with FarCom system 2412 | -10/Exiles | Given EX-Vault access code 2442 | -10/Exiles | Opened EX-Vault 2455 | -10/Exiles | Found Longsword +1 2484 | -10/Exiles | Warned to stay clear of 0b10 Research branches 2607 | -10/Exiles | Discovered new exit (range 12) 2757 | -10/Exiles | Discovered new exit (range 15) 3056 | -10/Exiles | Left Exiles lab with Longsword +1 3056 | -10/Exiles | Entered Mines 3063 | -9/Mines | Joined a pair of Derelicts in attacking an 0b10 outpost 3073 | -9/Mines | Met a Derelict bent on vengeance 3215 | -9/Mines | Assembled infested the area 3220 | -9/Mines | Assisted by a Guerilla fighting off Assembled 3246 | -9/Mines | Core integrity fell below 20% 3479 | -9/Mines | Discovered new exit (range 13) 3515 | -9/Mines | Met a Derelict shopkeep closing up shop 3619 | -9/Mines | Destroyed by as-98413 with Assembled Heavy Rifle Last Messages --------------- 03502_ Sneak attack on R-06 Scavenger. 03506_ K-01 Serf collects debris. 03514_ Connecting with SHOP.Sys... 03514_ Current location identified: Mines >>Open Door Sealed Doors opened. 03515_ HD-BMD(g): "Sorry, the Unaware have moved into these parts and I'm closing up shop. No more sales from me!" 03517_ ALERT: Derelict activity detected in mines. Dispatching investigation squad. 03519_ HD-BMD(g): "You've got to be kidding me! I'm outta here..." 03522_ Dropped Lrg. Storage Unit. 03522_ Acquired Gauss Rifle. 03526_ Dropped Mni. Grenade Launcher. 03526_ Acquired Hvy. Missile Launcher. 03542_ Dropped Rocket Launcher. 03542_ Acquired Imp. Shield Generator. 03548_ K-01 Serf collects debris. 03614_ U-05 Engineer builds a Wall. 03618_ Slug penetrates Earth. Map ----- +----------------------------------------------------+ | ?????????????????## #???????????"?????????????? | | ??????????????????## ##??????????""" ?????????? | | ???????????#???????#[##??????????!""" ?????????? | | ???????????# #????#[#???###????#% #?????????? | | ??????????## ###%########?## #??????????? | | ??????????# < !%%=%%%=% ## #???????????? | | ?????????# %%!%*= =%! #???????????? | | ????? ####### #???????????? | | ?????#### ###??????#! ##???????????? | | ????????# ??????????#% ##????????????? | | ????????# ???????????#*! ## ##?????????????? | | ????????# ?????#########*##??###??????????????? | | ????????## ??????# =%!=##??????????????????? | | ?????????##???????## !%*%###?????????????????? | | ???????????????????########!%###########?????????? | | ?????????????????????????##%%= ! = #????????## | | ?????????????????????????##! ######### #????????# | | ????????????????????????## = #???????# #????????# | | ????????????????????????#=!%*#???????#!#????????# | | ???????????????????????##% | #???????# #???????## | | ?????????????????###??## * ##???????# #???????# | | ????????????????## ## ##????????# ######### | | ??????????? #### ##?????????# | | ?????????# u###?????????######## # # | | ?????????# #;#????############# ## | | ????????? ### @##???# % ##? | | ?????????? ????#### %! #???# ############ #### | | ????????????????????##=%*! #????????????##### ##" | | ?????????????????????##%=!##????????????# #!! | | ??????????????????????#|!! ?????????????# #####! = | | ??????????????????????%=*!#?????????????# #??### = | | ?????????????????????#=%%|#?????????????# #### ##+ | | ?????????????????????! ==##?????????????# % | | ????????????????????#==a%#*?????????????###### = | | ????????????????????#! %=?%??????????????????# | | ????????????????????#!*=|?#??????????????????# | | ????????????????????###%%????????????????????# | | ??????????????????????#!%????????????????????# | | ??????????????????????###????????????????????# | | ?????????????????????????????????????????????##### | | ?????????????????????????????????????????????????? | | ?????????????????????????????????????????????????? | | ?????????????????????????????????????????????????? | | | | | | | | | | | | | | | +----------------------------------------------------+ Best States ------------- Heat Dissipation 25 Energy Generation 14 Energy Capacity 160 Matter Stores 300 Matter Capacity 300 Sight Range 16 Terrain Scan Density 10 Armor Coverage 150 Evasion (%) 44 Recoil Reduction 1 Item Schematics ----------------- None Robot Schematics ------------------ None Fabricated ------------ Nothing Alien Tech Used ----------------- None Achievements -------------- None Challenges ------------ None Game ------ Seed NovaGaussReplicator Manual? 0 Play Time 00:47:32 Cumulative 197.1 hours Start 2020.09.16 @ 05:30:51 End 2020.09.16 @ 06:20:42 Sessions 1 Manual Loads 0 Difficulty Rogue Special Mode None Game No. 71 Rogue 71 Adventurer 0 Explorer 0 Win Type - Total 2 Types 1/0/1/0/0/0/0/0/0 Lore% 65 Gallery% 76 Achievement% 67 Wizard Run 0 Options --------- ASCII 1 Keyboard 1 Movement Numpad Keybinds 0 Fullscreen 1 Font 16/SmallcapsGlow Map View 75x55 Tactical HUD 1 Map Filters NONE Filters NONE Steam 1 RUN: acb96097-47d1-4ffb-8727-208b8b273de7